lending/lending_fUSD_20260306
["ID","MTS","AMOUNT","RATE_DAILY","PERIOD"]
[407812482,1772814792303,-203.86501493,0.00046393,30]
[407812483,1772814792312,-201.93286098,0.00046393,30]
[407812484,1772814792321,-3000.0,0.00046393,30]
[407812485,1772814792331,-250.0,0.00046393,30]
[407812486,1772814792340,-1357.0,0.00046393,30]
[407812487,1772814792349,-151.0,0.00046393,30]
[407812488,1772814792359,-151.5,0.00046399,60]
[407812489,1772814792368,-3000.0,0.000464,60]
[407812490,1772814792378,-520.80452122,0.000464,2]
[407812491,1772814792388,-150.0,0.00046405,30]
[407812492,1772814792397,-159.49661076,0.00046416,30]
[407812493,1772814792406,-237.39121081,0.00046416,30]
[407812494,1772814792415,-178.56416906,0.00046416,30]
[407812495,1772814792424,-496.10721813,0.00046416,30]
[407812496,1772814792434,-259.39398879,0.00046416,30]
[407812497,1772814792443,-196.401106,0.00046416,30]
[407812498,1772814792456,-1000.0,0.00046418,30]
[407812499,1772814792465,-1011.93485607,0.0004642,2]
[407812500,1772814792574,-505.73681112,0.0004642,2]
[407812501,1772814792584,-1000.0,0.0004642,2]
[407812502,1772814792594,-150.0,0.00046421,30]
[407812503,1772814792603,-160.11893904,0.0004643,2]
[407812504,1772814792613,-150.0,0.00046457,30]
[407812505,1772814792624,-150.0,0.00046457,30]
[407812506,1772814792634,-159.49661076,0.00046464,30]
[407812507,1772814792643,-237.39121081,0.00046464,30]
[407812508,1772814792652,-178.56416906,0.00046464,30]
[407812509,1772814792661,-496.10721813,0.00046464,30]
[407812510,1772814792670,-259.39398879,0.00046464,30]
[407812511,1772814792680,-196.401106,0.00046464,30]
[407812512,1772814792694,-150.0,0.00046471,30]
[407812513,1772814792702,-150.0,0.00046493,30]
[407812514,1772814792712,-150.0,0.00046493,30]
[407812515,1772814792723,-150.0,0.00046496,30]
[407812516,1772814792732,-100183.71826515,0.000465,60]
[407812517,1772814792742,-159.49661076,0.00046511,30]
[407812518,1772814792751,-237.39121081,0.00046511,30]
[407812519,1772814792761,-178.56416906,0.00046511,30]
[407812520,1772814792771,-496.10721813,0.00046511,30]
[407812521,1772814792780,-259.39398879,0.00046511,30]
[407812522,1772814792790,-196.401106,0.00046511,30]
[407812523,1772814792799,-245.37276384,0.00046515,30]
[407812524,1772814792808,-245.37276384,0.00046515,30]
[407812525,1772814792818,-150.0,0.00046522,30]
[407812526,1772814792827,-150.0,0.00046541,30]
[407812527,1772814792837,-150.0,0.00046541,30]
[407812528,1772814792847,-159.49661076,0.00046559,30]
[407812529,1772814792856,-237.39121081,0.00046559,30]
[407812530,1772814792865,-178.56416906,0.00046559,30]
[407812531,1772814792874,-496.10721813,0.00046559,30]
[407812532,1772814792884,-259.39398879,0.00046559,30]
[407812533,1772814792894,-196.401106,0.00046559,30]
[407812534,1772814792903,-152.0,0.00046567,16]
[407812535,1772814792913,-150.0,0.00046569,30]
[407812536,1772814792922,-150.0,0.00046573,30]
[407812537,1772814792931,-500.0,0.00046575,60]
[407812538,1772814792941,-170.82441599,0.00046575,60]
[407812539,1772814792950,-1048.52,0.00046575,2]
[407812540,1772814792962,-1048.52,0.00046575,2]
[407812541,1772814792971,-1048.52,0.00046575,2]
[407812542,1772814792980,-1048.52,0.00046575,2]
[407812543,1772814792990,-1048.52,0.00046575,2]
[407812544,1772814792999,-1048.52,0.00046575,2]
[407812545,1772814793009,-1048.52,0.00046575,2]
[407812546,1772814793018,-1048.52,0.00046575,2]
[407812547,1772814793027,-1048.52,0.00046575,2]
[407812548,1772814793036,-1048.52,0.00046575,2]
[407812549,1772814793046,-1048.52,0.00046575,2]
[407812550,1772814793055,-1048.52,0.00046575,2]
[407812551,1772814793065,-1048.52,0.00046575,2]
[407812552,1772814793074,-1048.52,0.00046575,2]
[407812553,1772814793083,-1048.52,0.00046575,2]
[407812554,1772814793092,-1048.52,0.00046575,2]
[407812555,1772814793101,-1048.52,0.00046575,2]
[407812556,1772814793110,-1048.52,0.00046575,2]
[407812557,1772814793120,-1048.52,0.00046575,2]
[407812558,1772814793129,-1048.52,0.00046575,2]
[407812559,1772814793138,-1048.52,0.00046575,2]
[407812560,1772814793147,-1048.52,0.00046575,2]
[407812561,1772814793156,-1048.52,0.00046575,2]
[407812562,1772814793165,-1048.55532011,0.00046575,2]
[407812563,1772814793174,-2016.54841103,0.00046575,30]
[407812564,1772814793183,-1000.0,0.00046575,2]
[407812565,1772814793192,-258.22,0.00046575,2]
[407812566,1772814793201,-1000.0,0.00046575,2]
[407812567,1772814793212,-258.22,0.00046575,2]
[407812568,1772814793221,-500.0,0.00046575,2]
[407812569,1772814793230,-500.0,0.00046575,2]
[407812570,1772814793240,-500.0,0.00046575,2]
[407812571,1772814793250,-500.0,0.00046575,2]
[407812572,1772814793260,-500.0,0.00046575,2]
[407812573,1772814793269,-500.0,0.00046575,2]
[407812574,1772814793279,-500.0,0.00046575,2]
[407812575,1772814793288,-500.0,0.00046575,2]
[407812576,1772814793299,-613.01973523,0.00046575,2]
[407812577,1772814793309,-1000.0,0.00046575,2]
[407812578,1772814793319,-1000.0,0.00046575,2]
[407812579,1772814793329,-516.44,0.00046575,2]
[407812580,1772814793338,-500.0,0.00046575,2]
[407812581,1772814793348,-500.0,0.00046575,2]
[407812582,1772814793358,-359.0,0.00046575,2]
[407812583,1772814793371,-528.14585398,0.00046575,2]
[407812584,1772814793381,-7164.15159025,0.00046575,5]
[407812585,1772814793392,-150.0,0.00046586,30]
[407812586,1772814793402,-155.78413789,0.00046593,2]
[407812587,1772814793412,-159.49661076,0.00046606,30]
[407812588,1772814793422,-237.39121081,0.00046606,30]
[407812589,1772814793432,-178.56416906,0.00046606,30]
[407812590,1772814793443,-496.10721813,0.00046606,30]
[407812591,1772814793453,-259.39398879,0.00046606,30]
[407812592,1772814793463,-150.0,0.00046606,30]
[407812593,1772814793472,-196.401106,0.00046606,30]
[407812594,1772814793482,-150.0,0.0004662,30]
[407812595,1772814793491,-150.0,0.0004662,30]
[407812596,1772814793500,-150.0,0.00046623,30]
[407812597,1772814793511,-150.0,0.00046625,30]
[407812598,1772814793521,-159.49661076,0.00046654,30]
[407812599,1772814793531,-237.39121081,0.00046654,30]
[407812600,1772814793540,-178.56416906,0.00046654,30]
[407812601,1772814793550,-496.10721813,0.00046654,30]
[407812602,1772814793561,-259.39398879,0.00046654,30]
[407812603,1772814793572,-196.401106,0.00046654,30]
[407812604,1772814793582,-11378.63,0.00046665,7]
[407812605,1772814793592,-150.0,0.00046674,30]
[407812606,1772814793604,-2100.0,0.00046674,60]
[407812607,1772814793614,-150.0,0.00046677,30]
[407812608,1772814793626,-150.0,0.00046681,30]
[407812609,1772814793635,-1000.0,0.00046692,30]
[407812610,1772814793644,-159.49661076,0.00046702,30]
[407812611,1772814793654,-237.39121081,0.00046702,30]
[407812612,1772814793663,-178.56416906,0.00046702,30]
[407812613,1772814793673,-150.0,0.00046702,30]
[407812614,1772814793687,-496.10721813,0.00046702,30]
[407812615,1772814793697,-259.39398879,0.00046702,30]
[407812616,1772814793708,-196.401106,0.00046702,30]
[407812617,1772814793719,-150.0,0.00046709,30]
[407812618,1772814793729,-151.5,0.00046722,60]
[407812619,1772814793738,-150.0,0.00046725,30]
[407812620,1772814793749,-150.0,0.00046748,30]
[407812621,1772814793758,-150.0,0.00046748,30]
[407812622,1772814793767,-159.49661076,0.00046749,30]
[407812623,1772814793776,-237.39121081,0.00046749,30]
[407812624,1772814793785,-178.56416906,0.00046749,30]
[407812625,1772814793795,-496.10721813,0.00046749,30]
[407812626,1772814793804,-259.39398879,0.00046749,30]
[407812627,1772814793813,-196.401106,0.00046749,30]
[407812628,1772814793822,-1279.0,0.00046762,2]
[407812629,1772814793831,-1212.0,0.00046762,2]
[407812630,1772814793840,-922.0,0.00046762,2]
[407812631,1772814793850,-150.0,0.00046767,30]
[407812632,1772814793862,-150.0,0.00046775,30]
[407812633,1772814793871,-150.0,0.00046793,30]
[407812634,1772814793880,-150.0,0.00046793,30]
[407812635,1772814793890,-159.49661076,0.00046797,30]
[407812636,1772814793900,-237.39121081,0.00046797,30]
[407812637,1772814793909,-178.56416906,0.00046797,30]
[407812638,1772814793919,-496.10721813,0.00046797,30]
[407812639,1772814793929,-259.39398879,0.00046797,30]
[407812640,1772814793938,-196.401106,0.00046797,30]
[407812641,1772814793948,-384.89668835,0.000468,30]
[407812642,1772814793958,-150.0,0.00046826,30]
[407812643,1772814793968,-150.0,0.00046835,30]
[407812644,1772814793977,-159.49661076,0.00046844,30]
[407812645,1772814793986,-237.39121081,0.00046844,30]
[407812646,1772814793995,-178.56416906,0.00046844,30]
[407812647,1772814794005,-496.10721813,0.00046844,30]
[407812648,1772814794015,-259.39398879,0.00046844,30]
[407812649,1772814794023,-196.401106,0.00046844,30]
[407812650,1772814794033,-2692.29983561,0.00046853,2]
[407812651,1772814794042,-150.0,0.00046858,30]
[407812652,1772814794052,-155.78413789,0.00046867,2]
[407812653,1772814794061,-150.0,0.00046875,30]
[407812654,1772814794070,-150.0,0.00046875,30]
[407812655,1772814794079,-150.0,0.00046877,30]
[407812656,1772814794089,-150.0,0.00046878,30]
[407812657,1772814794097,-159.49661076,0.00046892,30]
[407812658,1772814794107,-237.39121081,0.00046892,30]
[407812659,1772814794116,-178.56416906,0.00046892,30]
[407812660,1772814794125,-496.10721813,0.00046892,30]
[407812661,1772814794134,-259.39398879,0.00046892,30]
[407812662,1772814794143,-196.401106,0.00046892,30]
[407812663,1772814794152,-170.75994611,0.000469,90]
[407812664,1772814794160,-150.0,0.00046906,30]
[407812665,1772814794169,-150.0,0.00046927,30]
[407812666,1772814794178,-159.49661076,0.0004694,30]
[407812667,1772814794188,-237.39121081,0.0004694,30]
[407812668,1772814794197,-178.56416906,0.0004694,30]
[407812669,1772814794206,-496.10721813,0.0004694,30]
[407812670,1772814794214,-259.39398879,0.0004694,30]
[407812671,1772814794224,-196.401106,0.0004694,30]
[407812672,1772814794233,-3000.0,0.00046948,60]
[407812673,1772814794242,-150.0,0.00046949,30]
[407812674,1772814794251,-150.0,0.00046962,30]
[407812675,1772814794260,-1000.0,0.00046965,30]
[407812676,1772814794269,-150.0,0.00046978,30]
[407812677,1772814794278,-214.0,0.0004698,30]
[407812678,1772814794287,-213.0,0.0004698,30]
[407812679,1772814794296,-159.49661076,0.00046987,30]
[407812680,1772814794306,-237.39121081,0.00046987,30]
[407812681,1772814794315,-178.56416906,0.00046987,30]
[407812682,1772814794324,-496.10721813,0.00046987,30]
[407812683,1772814794332,-259.39398879,0.00046987,30]
[407812684,1772814794341,-196.401106,0.00046987,30]
[407812685,1772814794350,-50000.0,0.00047,61]
[407812686,1772814794359,-22633.7229923,0.00047,30]
[407812687,1772814794368,-198.5932074,0.00047,30]
[407812688,1772814794377,-2000.0,0.00047,90]
[407812689,1772814794386,-4500.0,0.00047,120]
[407812690,1772814794395,-150.0,0.00047003,30]
[407812691,1772814794404,-150.0,0.00047003,30]
[407812692,1772814794413,-150.0,0.00047018,30]
[407812693,1772814794421,-150.0,0.00047029,30]
[407812694,1772814794430,-159.49661076,0.00047035,30]
[407812695,1772814794439,-237.39121081,0.00047035,30]
[407812696,1772814794448,-178.56416906,0.00047035,30]
[407812697,1772814794459,-496.10721813,0.00047035,30]
[407812698,1772814794467,-259.39398879,0.00047035,30]
[407812699,1772814794476,-196.401106,0.00047035,30]
[407812700,1772814794485,-150.0,0.00047039,30]
[407812701,1772814794494,-150.0,0.00047046,30]
[407812702,1772814794503,-150.0,0.00047079,30]
[407812703,1772814794511,-159.49661076,0.00047082,30]
[407812704,1772814794521,-237.39121081,0.00047082,30]
[407812705,1772814794530,-178.56416906,0.00047082,30]
[407812706,1772814794539,-496.10721813,0.00047082,30]
[407812707,1772814794547,-259.39398879,0.00047082,30]
[407812708,1772814794556,-196.401106,0.00047082,30]
[407812709,1772814794565,-200.0,0.000471,30]
[407812710,1772814794574,-5000.0,0.0004711,30]
[407812711,1772814794582,-4179.95774931,0.00047112,50]
[407812712,1772814794591,-3000.0,0.00047113,30]
[407812713,1772814794600,-3000.0,0.00047113,31]
[407812714,1772814794608,-3000.0,0.00047113,60]
[407812715,1772814794617,-3000.0,0.00047113,66]
[407812716,1772814794626,-500.0,0.00047113,30]
[407812717,1772814794635,-500.0,0.00047113,31]
[407812718,1772814794643,-500.0,0.00047113,60]
[407812719,1772814794652,-500.0,0.00047113,66]
[407812720,1772814794661,-1000.0,0.00047113,30]
[407812721,1772814794670,-1000.0,0.00047113,31]
[407812722,1772814794683,-537.6845,0.00047113,30]
[407812723,1772814794691,-1000.0,0.00047113,60]
[407812724,1772814794701,-557.5788265,0.00047113,31]
[407812725,1772814794710,-1000.0,0.00047113,66]
[407812726,1772814794719,-578.20924308,0.00047113,60]
[407812727,1772814794728,-599.60298507,0.00047113,66]
[407812728,1772814794737,-500.0,0.00047113,30]
[407812729,1772814794748,-500.0,0.00047113,31]
[407812730,1772814794759,-500.0,0.00047113,60]
[407812731,1772814794768,-250.0,0.00047113,30]
[407812732,1772814794777,-500.0,0.00047113,66]
[407812733,1772814794786,-250.0,0.00047113,31]
[407812734,1772814794795,-250.0,0.00047113,60]
[407812735,1772814794804,-162.380719,0.00047113,30]
[407812736,1772814794814,-537.6845,0.00047113,30]
[407812737,1772814794825,-250.0,0.00047113,66]
[407812738,1772814794834,-168.3888056,0.00047113,31]
[407812739,1772814794844,-557.5788265,0.00047113,31]
[407812740,1772814794853,-174.61919141,0.00047113,60]
[407812741,1772814794862,-181.08010149,0.00047113,66]
[407812742,1772814794871,-3000.0,0.00047113,30]
[407812743,1772814794880,-160.0,0.00047113,30]
[407812744,1772814794889,-3000.0,0.00047113,31]
[407812745,1772814794899,-160.0,0.00047113,31]
[407812746,1772814794908,-3000.0,0.00047113,60]
[407812747,1772814794917,-160.0,0.00047113,60]
[407812748,1772814794926,-3000.0,0.00047113,66]
[407812749,1772814794936,-160.0,0.00047113,66]
[407812750,1772814794946,-260.68961865,0.00047113,30]
[407812751,1772814794957,-1000.0,0.00047113,30]
[407812752,1772814794966,-1000.0,0.00047113,31]
[407812753,1772814794977,-500.0,0.00047113,30]
[407812754,1772814794986,-1000.0,0.00047113,60]
[407812755,1772814794995,-500.0,0.00047113,31]
[407812756,1772814795005,-1000.0,0.00047113,66]
[407812757,1772814795014,-500.0,0.00047113,60]
[407812758,1772814795024,-500.0,0.00047113,66]
[407812759,1772814795034,-1000.0,0.00047113,30]
[407812760,1772814795044,-1000.0,0.00047113,31]
[407812761,1772814795054,-1107.63007,0.00047113,30]
[407812762,1772814795063,-151.0,0.00047113,30]
[407812763,1772814795074,-1000.0,0.00047113,60]
[407812764,1772814795084,-1148.61238259,0.00047113,31]
[407812765,1772814795094,-1000.0,0.00047113,66]
[407812766,1772814795105,-500.0,0.00047113,30]
[407812767,1772814795114,-1191.11104075,0.00047113,60]
[407812768,1772814795124,-500.0,0.00047113,31]
[407812769,1772814795133,-1235.18214925,0.00047113,66]
[407812770,1772814795143,-162.380719,0.00047113,30]
[407812771,1772814795152,-168.3888056,0.00047113,31]
[407812772,1772814795162,-1357.0,0.00047113,30]
[407812773,1772814795172,-174.61919141,0.00047113,60]
[407812774,1772814795182,-1357.0,0.00047113,31]
[407812775,1772814795192,-181.08010149,0.00047113,66]
[407812776,1772814795202,-1357.0,0.00047113,60]
[407812777,1772814795213,-176.29,0.00047113,30]
[407812778,1772814795223,-1357.0,0.00047113,66]
[407812779,1772814795233,-182.81273,0.00047113,31]
[407812780,1772814795243,-189.57680101,0.00047113,60]
[407812781,1772814795252,-196.59114265,0.00047113,66]
[407812782,1772814795262,-162.380719,0.00047113,30]
[407812783,1772814795272,-168.3888056,0.00047113,31]
[407812784,1772814795281,-174.61919141,0.00047113,60]
[407812785,1772814795291,-3000.0,0.00047113,30]
[407812786,1772814795301,-181.08010149,0.00047113,66]
[407812787,1772814795310,-3000.0,0.00047113,31]
[407812788,1772814795320,-3000.0,0.00047113,60]
[407812789,1772814795330,-250.0,0.00047113,30]
[407812790,1772814795339,-3000.0,0.00047113,66]
[407812791,1772814795349,-250.0,0.00047113,31]
[407812792,1772814795360,-250.0,0.00047113,60]
[407812793,1772814795370,-250.0,0.00047113,66]
[407812794,1772814795382,-151.0,0.00047113,30]
[407812795,1772814795393,-151.0,0.00047113,31]
[407812796,1772814795403,-151.0,0.00047113,60]
[407812797,1772814795414,-151.0,0.00047113,66]
[407812798,1772814795424,-666.72878,0.00047113,30]
[407812799,1772814795434,-691.39774486,0.00047113,31]
[407812800,1772814795444,-716.97946142,0.00047113,60]
[407812801,1772814795454,-3668.63973804,0.0004712,20]
[407812802,1772814795463,-255.75987188,0.0004712,30]
[407812803,1772814795473,-962.82618512,0.00047123,60]
[407812804,1772814795483,-887.97580398,0.00047123,60]
[407812805,1772814795493,-3000.0,0.00047129,30]
[407812806,1772814795503,-500.0,0.00047129,30]
[407812807,1772814795513,-1000.0,0.00047129,30]
[407812808,1772814795523,-500.0,0.00047129,30]
[407812809,1772814795532,-151.0,0.00047129,30]
[407812810,1772814795542,-500.0,0.00047129,30]
[407812811,1772814795552,-250.0,0.00047129,30]
[407812812,1772814795561,-151.0,0.00047129,30]
[407812813,1772814795571,-500.0,0.00047129,30]
[407812814,1772814795580,-160.0,0.00047129,30]
[407812815,1772814795590,-3000.0,0.00047129,30]
[407812816,1772814795600,-151.0,0.00047129,30]
[407812817,1772814795610,-1000.0,0.00047129,30]
[407812818,1772814795619,-500.0,0.00047129,30]
[407812819,1772814795629,-1605.76440826,0.00047129,30]
[407812820,1772814795639,-1000.0,0.00047129,30]
[407812821,1772814795648,-1030.0,0.00047129,30]
[407812822,1772814795658,-151.0,0.00047129,30]
[407812823,1772814795667,-500.0,0.00047129,30]
[407812824,1772814795677,-151.0,0.00047129,30]
[407812825,1772814795690,-1357.0,0.00047129,30]
[407812826,1772814795699,-170.0,0.00047129,30]
[407812827,1772814795711,-151.0,0.00047129,30]
[407812828,1772814795721,-3000.0,0.00047129,30]
[407812829,1772814795731,-250.0,0.00047129,30]
[407812830,1772814795741,-3055.21828805,0.00047129,30]
[407812831,1772814795751,-2000.0,0.00047129,30]
[407812832,1772814795763,-251.0,0.00047129,30]
[407812833,1772814795772,-151.0,0.00047129,30]
[407812834,1772814795782,-151.0,0.00047129,30]
[407812835,1772814795792,-620.0,0.00047129,30]
[407812836,1772814795802,-1109.0,0.0004713,30]
[407812837,1772814795811,-208.73921019,0.0004713,30]
[407812838,1772814795821,-159.49661076,0.0004713,30]
[407812839,1772814795831,-237.39121081,0.0004713,30]
[407812840,1772814795841,-178.56416906,0.0004713,30]
[407812841,1772814795851,-238.38690317,0.0004713,30]
[407812842,1772814795861,-241.21175314,0.0004713,30]
[407812843,1772814795871,-275.41066457,0.0004713,30]
[407812844,1772814795880,-496.10721813,0.0004713,30]
[407812845,1772814795890,-259.39398879,0.0004713,30]
[407812846,1772814795900,-225.87211035,0.0004713,30]
[407812847,1772814795909,-291.29369427,0.0004713,30]
[407812848,1772814795919,-187.93715712,0.0004713,30]
[407812849,1772814795929,-221.84063967,0.0004713,30]
[407812850,1772814795938,-278.22274647,0.0004713,30]
[407812851,1772814795948,-282.59655089,0.0004713,30]
[407812852,1772814795958,-239.24759194,0.0004713,30]
[407812853,1772814795968,-196.401106,0.0004713,30]
[407812854,1772814795978,-300.0,0.00047141,30]
[407812855,1772814795987,-202.51,0.00047141,30]
[407812856,1772814795997,-300.0,0.00047141,30]
[407812857,1772814796008,-202.51,0.00047141,30]
[407812858,1772814796018,-563.11,0.00047141,30]
[407812859,1772814796028,-293.43158057,0.00047141,30]
[407812860,1772814796037,-293.43158057,0.00047141,30]
[407812861,1772814796047,-155.78413789,0.00047141,2]
[407812862,1772814796057,-150.0,0.00047149,2]
[407812863,1772814796067,-181.95,0.00047149,30]
[407812864,1772814796076,-632.72,0.00047149,30]
[407812865,1772814796086,-474.0,0.0004715,30]
[407812866,1772814796095,-300.0,0.00047156,30]
[407812867,1772814796105,-300.0,0.00047156,30]
[407812868,1772814796117,-300.0,0.00047156,30]
[407812869,1772814796127,-299.0,0.00047156,30]
[407812870,1772814796137,-15095.69362712,0.00047165,30]
[407812871,1772814796147,-15095.69362712,0.00047165,30]
[407812872,1772814796156,-15095.69362712,0.00047165,30]
[407812873,1772814796166,-15095.69362712,0.00047165,30]
[407812874,1772814796176,-50000.0,0.00047219,43]
[407812875,1772814796186,-50000.0,0.00047219,45]
[407812876,1772814796196,-50000.0,0.00047219,46]
[407812877,1772814796205,-50000.0,0.00047219,52]
[407812878,1772814796215,-50000.0,0.00047219,53]
[407812879,1772814796224,-50000.0,0.00047219,54]
[407812880,1772814796234,-50000.0,0.00047219,55]
[407812881,1772814796244,-50000.0,0.00047219,56]
[407812882,1772814796254,-50000.0,0.00047219,57]
[407812883,1772814796264,-50000.0,0.00047219,58]
[407812884,1772814796273,-50000.0,0.00047219,59]
[407812885,1772814796283,-50000.0,0.00047219,60]
[407812886,1772814796295,-151.0,0.0004722,30]
[407812887,1772814796306,-202.51,0.0004722,30]
[407812888,1772814796319,-301.78,0.0004722,30]
[407812889,1772814796331,-151.0,0.0004722,30]
[407812890,1772814796341,-11154.02490407,0.0004722,2]
[407812891,1772814796352,-399.18000405,0.0004722,2]
[407812892,1772814796362,-124610.89691669,0.0004722,2]
[407812893,1772814796371,-10890.06832204,0.0004722,3]
[407812894,1772814796381,-1210.0,0.0004722,2]
[407812895,1772814796391,-6060.25754548,0.0004722,2]
[407812896,1772814796401,-717.67460925,0.0004722,2]
[407812897,1772814796411,-355.58936659,0.0004722,2]
[407812898,1772814796421,-2860.42495979,0.0004722,2]
[407812899,1772814796431,-986.97775573,0.0004722,2]
[407812900,1772814796441,-1552.10663109,0.0004722,2]
[407812901,1772814796451,-1051.14616804,0.0004722,2]
[407812902,1772814796462,-5295.90436522,0.0004722,2]
[407812903,1772814796472,-500.94747439,0.0004722,2]
[407812904,1772814796483,-2506.82124824,0.0004722,2]
[407812905,1772814796493,-2760.35088828,0.0004722,2]
[407812906,1772814796503,-154.45558665,0.0004722,2]
[407812907,1772814796512,-1712.31836447,0.0004722,2]
[407812908,1772814796523,-254.3239227,0.0004722,2]
[407812909,1772814796533,-500.0,0.0004722,2]
[407812910,1772814796544,-1287.5851794,0.0004722,2]
[407812911,1772814796554,-248.38413141,0.0004722,2]
[407812912,1772814796564,-1063.24780679,0.0004722,2]
[407812913,1772814796574,-556.61474766,0.0004722,2]
[407812914,1772814796584,-599.55600918,0.0004722,2]
[407812915,1772814796594,-9428.55954309,0.0004722,2]
[407812916,1772814796604,-1338.86136679,0.0004722,2]
[407812917,1772814796614,-1221.0,0.0004722,4]
[407812918,1772814796625,-3491.31611094,0.0004722,2]
[407812919,1772814796635,-2242.18729788,0.0004722,2]
[407812920,1772814796645,-23367.47494675,0.0004722,2]
[407812921,1772814796654,-763.04696293,0.0004722,2]
[407812922,1772814796664,-13099.70092852,0.0004722,2]
[407812923,1772814796674,-187.86240552,0.0004722,2]
[407812924,1772814796687,-15260.46634613,0.0004722,3]
[407812925,1772814796697,-643.0,0.0004722,2]
[407812926,1772814796707,-2021.29341678,0.0004722,4]
[407812927,1772814796716,-990.65763115,0.0004722,2]
[407812928,1772814796726,-584.89515248,0.0004722,2]
[407812929,1772814796736,-3308.24891324,0.0004722,2]
[407812930,1772814796746,-158.60218242,0.0004722,2]
[407812931,1772814796758,-178.99193577,0.0004722,2]
[407812932,1772814796768,-466.76302268,0.0004722,2]
[407812933,1772814796777,-7425.01417372,0.0004722,2]
[407812934,1772814796789,-550.0,0.0004722,2]
[407812935,1772814796800,-10927.13136496,0.0004722,2]
[407812936,1772814796812,-173628.36509889,0.0004722,2]
[407812937,1772814796823,-15250.12719387,0.0004722,2]
[407812938,1772814796834,-233.54238168,0.0004722,2]
[407812939,1772814796844,-177.23956681,0.0004722,2]
[407812940,1772814796854,-499.21194019,0.0004722,3]
[407812941,1772814796864,-6000.0,0.0004722,2]
[407812942,1772814796874,-382.87472664,0.0004722,2]
[407812943,1772814796883,-1304.35362534,0.0004722,2]
[407812944,1772814796893,-1054.04438558,0.0004722,2]
[407812945,1772814796902,-153.26360342,0.0004722,2]
[407812946,1772814796912,-50203.22165611,0.0004722,2]
[407812947,1772814796922,-675.18777768,0.0004722,2]
[407812948,1772814796932,-7951.06733519,0.0004722,2]
[407812949,1772814796942,-639.27107209,0.0004722,2]
[407812950,1772814796953,-219.15622625,0.0004722,2]
[407812951,1772814796965,-1088.55774321,0.0004722,2]
[407812952,1772814796975,-2500.0,0.0004722,2]
[407812953,1772814796986,-349.10609011,0.0004722,2]
[407812954,1772814796996,-1100.0,0.0004722,2]
[407812955,1772814797006,-3903.97120699,0.0004722,2]
[407812956,1772814797016,-930.851054,0.0004722,2]
[407812957,1772814797026,-1341.63734142,0.0004722,2]
[407812958,1772814797035,-491.46015996,0.0004722,2]
[407812959,1772814797044,-617.65242289,0.0004722,2]
[407812960,1772814797054,-1619.88625729,0.0004722,2]
[407812961,1772814797064,-107245.14063665,0.0004722,2]
[407812962,1772814797074,-559.56265858,0.0004722,2]
[407812963,1772814797084,-1032.54293744,0.0004722,2]
[407812964,1772814797093,-372.30270316,0.0004722,2]
[407812965,1772814797105,-2249.18975182,0.0004722,2]
[407812966,1772814797115,-12495.1397607,0.0004722,2]
[407812967,1772814797125,-15110.89758365,0.0004722,2]
[407812968,1772814797135,-1874.58090292,0.0004722,2]
[407812969,1772814797146,-6975.23628686,0.0004722,4]
[407812970,1772814797155,-1141.27794213,0.0004722,2]
[407812971,1772814797165,-5339.60713708,0.0004722,4]
[407812972,1772814797174,-278.89680728,0.0004722,2]
[407812973,1772814797184,-410.88578917,0.0004722,2]
[407812974,1772814797194,-20720.06184994,0.0004722,2]
[407812975,1772814797203,-2489.58123334,0.0004722,2]
[407812976,1772814797215,-207.0681864,0.0004722,2]
[407812977,1772814797226,-881.29884741,0.0004722,2]
[407812978,1772814797235,-288.68069819,0.0004722,2]
[407812979,1772814797245,-5809.16762623,0.0004722,2]
[407812980,1772814797255,-2217.96378981,0.0004722,2]
[407812981,1772814797266,-894.36926295,0.0004722,2]